fUSD/lending_fUSD_20260510
["ID","MTS","AMOUNT","RATE_DAILY","PERIOD"]
[421961564,1778374249000,-150.0,0.00041096,120]
[421961563,1778374249000,-150.0,0.00041096,120]
[421961560,1778374249000,-892.95,0.00041096,120]
[421961565,1778374249000,-150.0,0.00041096,120]
[421961566,1778374249000,-150.0,0.00041096,120]
[421961567,1778374249000,-150.0,0.00041096,120]
[421961572,1778374249000,-162.349892,0.00041096,120]
[421961568,1778374249000,-155.26736171,0.00041096,120]
[421961569,1778374249000,-151.0,0.00041096,120]
[421961570,1778374249000,-151.0,0.00041096,120]
[421961571,1778374249000,-162.349892,0.00041096,120]
[421961574,1778374249000,-162.349892,0.00041096,120]
[421961573,1778374249000,-162.349892,0.00041096,120]
[421961578,1778374249000,-1205.02624961,0.000411,120]
[421961575,1778374249000,-194.0,0.000411,120]
[421961576,1778374249000,-1205.02624961,0.000411,120]
[421961515,1778374249000,-300.0,0.00041095,2]
[421961562,1778374249000,-892.95,0.00041096,120]
[421961550,1778374249000,-151.0,0.00041096,120]
[421961577,1778374249000,-1205.02624961,0.000411,120]
[421961545,1778374249000,-722.199432,0.00041096,120]
[421961518,1778374249000,-300.0,0.00041095,2]
[421961519,1778374249000,-300.0,0.00041095,2]
[421961521,1778374249000,-300.0,0.00041095,2]
[421961517,1778374249000,-300.0,0.00041095,2]
[421961520,1778374249000,-300.0,0.00041095,2]
[421961525,1778374249000,-156.31194856,0.00041095,2]
[421961535,1778374249000,-151.0,0.00041096,120]
[421961547,1778374249000,-201.06,0.00041096,120]
[421961536,1778374249000,-5873.836731,0.00041096,14]
[421961527,1778374249000,-151.0,0.00041096,120]
[421961528,1778374249000,-248.480614,0.00041096,120]
[421961526,1778374249000,-1561.0,0.00041096,120]
[421961530,1778374249000,-151.0,0.00041096,120]
[421961529,1778374249000,-151.0,0.00041096,120]
[421961524,1778374249000,-300.0,0.00041095,2]
[421961533,1778374249000,-151.0,0.00041096,120]
[421961532,1778374249000,-151.0,0.00041096,120]
[421961544,1778374249000,-722.199432,0.00041096,120]
[421961543,1778374249000,-722.199432,0.00041096,120]
[421961546,1778374249000,-201.06,0.00041096,120]
[421961538,1778374249000,-5873.836731,0.00041096,14]
[421961540,1778374249000,-5873.836731,0.00041096,14]
[421961542,1778374249000,-5873.836731,0.00041096,14]
[421961539,1778374249000,-151.0,0.00041096,120]
[421961541,1778374249000,-722.199432,0.00041096,120]
[421961537,1778374249000,-151.0,0.00041096,120]
[421961534,1778374249000,-151.0,0.00041096,120]
[421961531,1778374249000,-151.0,0.00041096,120]
[421961548,1778374249000,-160.05,0.00041096,60]
[421961613,1778374250000,-790.59,0.000414,14]
[421961616,1778374250000,-2000.0,0.0004141,120]
[421961619,1778374250000,-350.0,0.00041412,4]
[421961617,1778374250000,-2000.0,0.0004141,120]
[421961614,1778374250000,-2000.0,0.0004141,120]
[421961612,1778374250000,-150.96,0.00041392,120]
[421961615,1778374250000,-2000.0,0.0004141,120]
[421961622,1778374250000,-2808.06124531,0.00041433,2]
[421961611,1778374250000,-353.0,0.00041388,2]
[421961609,1778374250000,-1000.0,0.00041366,120]
[421961620,1778374250000,-13084.34298799,0.0004142,2]
[421961618,1778374250000,-2000.0,0.0004141,120]
[421961624,1778374250000,-1205.02624961,0.00041481,120]
[421961638,1778374250000,-1891.24032894,0.00041644,120]
[421961629,1778374250000,-512.43,0.000415,30]
[421961623,1778374250000,-214.05284582,0.00041473,120]
[421961628,1778374250000,-150.96,0.00041492,120]
[421961627,1778374250000,-622.35,0.00041487,2]
[421961626,1778374250000,-5000.0,0.00041483,30]
[421961631,1778374250000,-2808.06124531,0.00041579,2]
[421961642,1778374250000,-160.825974,0.00041658,120]
[421961641,1778374250000,-2808.06124531,0.00041658,2]
[421961630,1778374250000,-1792.87,0.0004152,2]
[421961635,1778374250000,-1561.0,0.00041644,120]
[421961634,1778374250000,-1142.42775095,0.00041639,2]
[421961637,1778374250000,-1000.0,0.00041644,120]
[421961610,1778374250000,-1561.0,0.0004137,120]
[421961625,1778374250000,-1000.0,0.00041482,120]
[421961621,1778374250000,-17618.11047958,0.0004142,2]
[421961595,1778374250000,-2400.0,0.00041187,30]
[421961604,1778374250000,-2808.06124531,0.00041294,2]
[421961584,1778374250000,-1205.02624961,0.000411,120]
[421961580,1778374250000,-1205.02624961,0.000411,120]
[421961579,1778374250000,-1205.02624961,0.000411,120]
[421961583,1778374250000,-1205.02624961,0.000411,120]
[421961582,1778374250000,-1205.02624961,0.000411,120]
[421961581,1778374250000,-1205.02624961,0.000411,120]
[421961585,1778374250000,-1205.02624961,0.000411,120]
[421961587,1778374250000,-1205.02624961,0.000411,120]
[421961589,1778374250000,-1205.02624961,0.000411,120]
[421961588,1778374250000,-1205.02624961,0.000411,120]
[421961596,1778374250000,-2400.0,0.00041187,60]
[421961586,1778374250000,-1205.02624961,0.000411,120]
[421961590,1778374250000,-1205.02624961,0.000411,120]
[421961592,1778374250000,-1205.02624961,0.000411,120]
[421961591,1778374250000,-1205.02624961,0.000411,120]
[421961594,1778374250000,-1000.0,0.00041122,120]
[421961593,1778374250000,-1205.02624961,0.000411,120]
[421961598,1778374250000,-1101.25,0.000412,90]
[421961597,1778374250000,-150.96,0.00041192,120]
[421961599,1778374250000,-4929.14,0.0004125,120]
[421961605,1778374250000,-155.0,0.000413,120]
[421961607,1778374250000,-2808.06124531,0.00041305,2]
[421961600,1778374250000,-150.96,0.00041292,120]
[421961601,1778374250000,-151.0,0.00041294,30]
[421961608,1778374250000,-1000.0,0.0004134,120]
[421961602,1778374250000,-151.0,0.00041294,30]
[421961603,1778374250000,-151.0,0.00041294,30]
[421961606,1778374250000,-1020.26,0.000413,7]
[421961639,1778374250000,-151.0,0.00041644,120]
[421961640,1778374250000,-150.0,0.00041652,120]
[421961636,1778374250000,-1000.0,0.00041644,120]
[421961679,1778374250000,-250.0,0.00041779,116]
[421961673,1778374250000,-1776.20458845,0.0004177,3]
[421961674,1778374250000,-250.0,0.00041772,116]
[421961675,1778374250000,-152.0,0.00041773,30]
[421961678,1778374250000,-250.0,0.00041777,116]
[421961676,1778374250000,-1000.0,0.00041773,120]
[421961677,1778374250000,-250.0,0.00041774,116]
[421961680,1778374250000,-250.0,0.00041781,117]
[421961687,1778374250000,-151.0,0.00041781,7]
[421961689,1778374250000,-151.0,0.00041781,120]
[421961688,1778374250000,-151.0,0.00041781,7]
[421961682,1778374250000,-151.0,0.00041781,120]
[421961692,1778374250000,-151.0,0.00041781,30]
[421961693,1778374250000,-151.0,0.00041781,30]
[421961691,1778374250000,-151.0,0.00041781,30]
[421961681,1778374250000,-494.81764384,0.00041781,120]
[421961683,1778374250000,-151.0,0.00041781,120]
[421961685,1778374250000,-151.0,0.00041781,7]
[421961684,1778374250000,-170.310563,0.00041781,120]
[421961686,1778374250000,-151.0,0.00041781,7]
[421961694,1778374250000,-151.0,0.00041781,30]
[421961697,1778374250000,-511.04971001,0.00041783,120]
[421961695,1778374250000,-279.381305,0.00041781,30]
[421961699,1778374250000,-250.0,0.00041787,117]
[421961696,1778374250000,-250.0,0.00041783,117]
[421961698,1778374250000,-250.0,0.00041785,117]
[421961632,1778374250000,-150.96,0.00041592,120]
[421961669,1778374250000,-250.0,0.0004177,115]
[421961670,1778374250000,-1000.0,0.0004177,3]
[421961690,1778374250000,-151.0,0.00041781,120]
[421961672,1778374250000,-1000.0,0.0004177,3]
[421961671,1778374250000,-1000.0,0.0004177,3]
[421961643,1778374250000,-151.0,0.00041658,120]
[421961644,1778374250000,-151.0,0.00041658,120]
[421961647,1778374250000,-1000.0,0.00041694,120]
[421961645,1778374250000,-150.96,0.00041692,120]
[421961654,1778374250000,-214.216042,0.0004175,7]
[421961646,1778374250000,-1143.1,0.00041694,120]
[421961648,1778374250000,-194.0,0.000417,120]
[421961655,1778374250000,-250.0,0.00041753,113]
[421961656,1778374250000,-250.0,0.00041756,114]
[421961649,1778374250000,-5027.72,0.0004175,120]
[421961650,1778374250000,-151.0,0.0004175,120]
[421961652,1778374250000,-151.0,0.0004175,7]
[421961653,1778374250000,-151.0,0.0004175,7]
[421961633,1778374250000,-285.89283057,0.00041639,2]
[421961658,1778374250000,-191.52,0.00041759,13]
[421961651,1778374250000,-151.0,0.0004175,120]
[421961665,1778374250000,-250.0,0.00041762,114]
[421961662,1778374250000,-173.55,0.00041759,13]
[421961661,1778374250000,-173.55,0.00041759,13]
[421961663,1778374250000,-173.54,0.00041759,13]
[421961664,1778374250000,-250.0,0.00041759,114]
[421961668,1778374250000,-250.0,0.00041767,115]
[421961667,1778374250000,-250.0,0.00041765,115]
[421961660,1778374250000,-210.34,0.00041759,13]
[421961659,1778374250000,-210.34,0.00041759,13]
[421961657,1778374250000,-191.52,0.00041759,13]
[421961666,1778374250000,-1000.0,0.00041764,120]
[421961741,1778374251000,-3000.0,0.00041791,120]
[421961740,1778374251000,-3000.0,0.00041791,120]
[421961743,1778374251000,-3000.0,0.00041791,120]
[421961730,1778374251000,-3000.0,0.00041791,120]
[421961737,1778374251000,-3000.0,0.00041791,120]
[421961735,1778374251000,-3000.0,0.00041791,120]
[421961738,1778374251000,-3000.0,0.00041791,120]
[421961733,1778374251000,-3000.0,0.00041791,120]
[421961734,1778374251000,-3000.0,0.00041791,120]
[421961744,1778374251000,-3000.0,0.00041791,120]
[421961739,1778374251000,-3000.0,0.00041791,120]
[421961736,1778374251000,-3000.0,0.00041791,120]
[421961742,1778374251000,-3000.0,0.00041791,120]
[421961749,1778374251000,-3000.0,0.00041791,120]
[421961748,1778374251000,-3000.0,0.00041791,120]
[421961747,1778374251000,-3000.0,0.00041791,120]
[421961750,1778374251000,-3000.0,0.00041791,120]
[421961746,1778374251000,-3000.0,0.00041791,120]
[421961756,1778374251000,-3000.0,0.00041791,120]
[421961754,1778374251000,-3000.0,0.00041791,120]
[421961752,1778374251000,-3000.0,0.00041791,120]
[421961751,1778374251000,-3000.0,0.00041791,120]
[421961753,1778374251000,-3000.0,0.00041791,120]
[421961755,1778374251000,-3000.0,0.00041791,120]
[421961758,1778374251000,-3000.0,0.00041791,120]
[421961728,1778374251000,-3000.0,0.00041791,120]
[421961745,1778374251000,-3000.0,0.00041791,120]
[421961727,1778374251000,-3000.0,0.00041791,120]
[421961704,1778374251000,-786.0,0.00041789,60]
[421961725,1778374251000,-3000.0,0.00041791,120]
[421961701,1778374251000,-786.0,0.00041789,60]
[421961705,1778374251000,-786.0,0.00041789,60]
[421961706,1778374251000,-786.0,0.00041789,60]
[421961702,1778374251000,-786.0,0.00041789,60]
[421961700,1778374251000,-250.0,0.00041788,117]
[421961703,1778374251000,-786.0,0.00041789,60]
[421961708,1778374251000,-786.0,0.00041789,60]
[421961718,1778374251000,-3000.0,0.00041791,120]
[421961719,1778374251000,-3000.0,0.00041791,120]
[421961707,1778374251000,-786.0,0.00041789,60]
[421961709,1778374251000,-250.0,0.0004179,118]
[421961711,1778374251000,-3000.0,0.00041791,120]
[421961713,1778374251000,-3000.0,0.00041791,120]
[421961714,1778374251000,-3000.0,0.00041791,120]
[421961710,1778374251000,-3000.0,0.00041791,120]
[421961712,1778374251000,-3000.0,0.00041791,120]
[421961716,1778374251000,-3000.0,0.00041791,120]
[421961717,1778374251000,-3000.0,0.00041791,120]
[421961715,1778374251000,-3000.0,0.00041791,120]
[421961720,1778374251000,-3000.0,0.00041791,120]
[421961724,1778374251000,-3000.0,0.00041791,120]
[421961721,1778374251000,-3000.0,0.00041791,120]
[421961722,1778374251000,-3000.0,0.00041791,120]
[421961723,1778374251000,-3000.0,0.00041791,120]
[421961732,1778374251000,-3000.0,0.00041791,120]
[421961757,1778374251000,-3000.0,0.00041791,120]
[421961726,1778374251000,-3000.0,0.00041791,120]
[421961729,1778374251000,-3000.0,0.00041791,120]
[421961768,1778374251000,-500.0,0.00041792,120]
[421961731,1778374251000,-3000.0,0.00041791,120]
[421961760,1778374251000,-30000.0,0.00041792,2]
[421961791,1778374251000,-599.706,0.00041792,120]
[421961794,1778374251000,-499.9,0.00041792,120]
[421961798,1778374251000,-500.0,0.00041792,2]
[421961795,1778374251000,-234.02,0.00041792,30]
[421961797,1778374251000,-500.0,0.00041792,2]
[421961796,1778374251000,-500.0,0.00041792,2]
[421961799,1778374251000,-500.0,0.00041792,2]
[421961800,1778374251000,-500.0,0.00041792,2]
[421961802,1778374251000,-500.0,0.00041792,2]
[421961801,1778374251000,-500.0,0.00041792,2]
[421961804,1778374251000,-500.0,0.00041792,2]
[421961814,1778374251000,-500.0,0.00041792,120]
[421961805,1778374251000,-500.0,0.00041792,2]
[421961815,1778374251000,-500.0,0.00041792,120]
[421961803,1778374251000,-500.0,0.00041792,2]
[421961813,1778374251000,-500.0,0.00041792,120]
[421961806,1778374251000,-500.0,0.00041792,2]
[421961812,1778374251000,-232.69254472,0.00041792,30]
[421961809,1778374251000,-554.8,0.00041792,2]
[421961810,1778374251000,-10000.0,0.00041792,120]
[421961808,1778374251000,-500.0,0.00041792,2]
[421961811,1778374251000,-277.51717433,0.00041792,2]
[421961807,1778374251000,-500.0,0.00041792,2]
[421961816,1778374251000,-500.0,0.00041792,120]
[421961817,1778374251000,-500.0,0.00041792,120]
[421961818,1778374251000,-500.0,0.00041792,120]
[421961819,1778374251000,-151.1165415,0.00041792,120]
[421961792,1778374251000,-322.26654665,0.00041792,120]
[421961788,1778374251000,-1157.3,0.00041792,15]
[421961769,1778374251000,-500.0,0.00041792,120]
[421961793,1778374251000,-500.0,0.00041792,120]
[421961790,1778374251000,-623.74022846,0.00041792,120]
[421961763,1778374251000,-264.0,0.00041792,60]
[421961759,1778374251000,-2941.1501365,0.00041791,120]
[421961762,1778374251000,-300.0,0.00041792,30]
[421961764,1778374251000,-267031.98658851,0.00041792,2]
[421961765,1778374251000,-10107.34918298,0.00041792,2]
[421961767,1778374251000,-500.0,0.00041792,120]
[421961766,1778374251000,-500.0,0.00041792,120]
[421961770,1778374251000,-500.0,0.00041792,120]
[421961771,1778374251000,-500.0,0.00041792,120]
[421961781,1778374251000,-397.49146223,0.00041792,120]
[421961782,1778374251000,-681.16,0.00041792,120]
[421961772,1778374251000,-500.0,0.00041792,120]
[421961761,1778374251000,-250.0,0.00041792,118]
[421961773,1778374251000,-500.0,0.00041792,120]
[421961789,1778374251000,-234.80624515,0.00041792,120]
[421961776,1778374251000,-500.0,0.00041792,120]
[421961783,1778374251000,-100000.0,0.00041792,30]
[421961785,1778374251000,-100000.0,0.00041792,30]
[421961786,1778374251000,-411.24304062,0.00041792,2]
[421961784,1778374251000,-500.0,0.00041792,120]
[421961787,1778374251000,-193.82,0.00041792,2]
[421961779,1778374251000,-500.0,0.00041792,120]
[421961775,1778374251000,-500.0,0.00041792,120]
[421961777,1778374251000,-500.0,0.00041792,120]
[421961778,1778374251000,-500.0,0.00041792,120]
[421961774,1778374251000,-500.0,0.00041792,120]
[421961780,1778374251000,-500.0,0.00041792,120]
[421961867,1778374252000,-2514.55,0.00041792,120]
[421961866,1778374252000,-2264.41525939,0.00041792,120]
[421961847,1778374252000,-2264.4152594,0.00041792,120]
[421961849,1778374252000,-2264.4152594,0.00041792,120]
[421961851,1778374252000,-2264.4152594,0.00041792,120]
[421961846,1778374252000,-2514.55,0.00041792,120]
[421961850,1778374252000,-2514.55,0.00041792,120]
[421961856,1778374252000,-2514.55,0.00041792,120]
[421961848,1778374252000,-2514.55,0.00041792,120]
[421961845,1778374252000,-2514.55,0.00041792,120]
[421961855,1778374252000,-2264.4152594,0.00041792,120]
[421961862,1778374252000,-2264.4152594,0.00041792,120]
[421961858,1778374252000,-2514.55,0.00041792,120]
[421961864,1778374252000,-2264.4152594,0.00041792,120]
[421961860,1778374252000,-2514.55,0.00041792,120]
[421961863,1778374252000,-2514.55,0.00041792,120]
[421961861,1778374252000,-2264.4152594,0.00041792,120]
[421961865,1778374252000,-2514.55,0.00041792,120]
[421961869,1778374252000,-2514.55,0.00041792,120]
[421961879,1778374252000,-763.17,0.00041792,14]
[421961880,1778374252000,-763.17,0.00041792,14]
[421961841,1778374252000,-2514.55,0.00041792,120]
[421961857,1778374252000,-2264.4152594,0.00041792,120]
[421961854,1778374252000,-2514.55,0.00041792,120]
[421961831,1778374252000,-500.0,0.00041792,120]
[421961844,1778374252000,-2514.55,0.00041792,120]
[421961827,1778374252000,-500.0,0.00041792,120]
[421961822,1778374252000,-151.1165415,0.00041792,120]
[421961820,1778374252000,-500.0,0.00041792,120]
[421961823,1778374252000,-500.0,0.00041792,120]
[421961825,1778374252000,-500.0,0.00041792,120]
[421961821,1778374252000,-500.0,0.00041792,120]
[421961826,1778374252000,-500.0,0.00041792,120]
[421961824,1778374252000,-500.0,0.00041792,120]
[421961829,1778374252000,-500.0,0.00041792,120]
[421961828,1778374252000,-500.0,0.00041792,120]
[421961830,1778374252000,-500.0,0.00041792,120]
[421961843,1778374252000,-2514.55,0.00041792,120]
[421961839,1778374252000,-500.0,0.00041792,120]
[421961832,1778374252000,-500.0,0.00041792,120]
[421961833,1778374252000,-500.0,0.00041792,120]
[421961840,1778374252000,-506.75,0.00041792,120]
[421961834,1778374252000,-624.78410116,0.00041792,120]
[421961835,1778374252000,-500.0,0.00041792,120]
[421961836,1778374252000,-500.0,0.00041792,120]
[421961837,1778374252000,-500.0,0.00041792,120]
[421961838,1778374252000,-500.0,0.00041792,120]
[421961842,1778374252000,-2514.55,0.00041792,120]
[421961852,1778374252000,-2514.55,0.00041792,120]
[421961853,1778374252000,-2264.4152594,0.00041792,120]
[421961868,1778374252000,-2264.41525939,0.00041792,120]
[421961871,1778374252000,-2514.55,0.00041792,120]
[421961859,1778374252000,-2264.4152594,0.00041792,120]
[421961870,1778374252000,-2264.41525939,0.00041792,120]
[421961905,1778374252000,-500.0,0.00041792,120]
[421961903,1778374252000,-500.0,0.00041792,120]
[421961904,1778374252000,-500.0,0.00041792,120]
[421961908,1778374252000,-500.0,0.00041792,120]
[421961907,1778374252000,-500.0,0.00041792,120]
[421961906,1778374252000,-500.0,0.00041792,120]
[421961910,1778374252000,-500.0,0.00041792,120]
[421961909,1778374252000,-500.0,0.00041792,120]
[421961915,1778374252000,-500.0,0.00041792,120]
[421961913,1778374252000,-497.305,0.00041792,120]
[421961911,1778374252000,-500.0,0.00041792,120]
[421961902,1778374252000,-763.25413823,0.00041792,14]
[421961916,1778374252000,-500.0,0.00041792,120]
[421961914,1778374252000,-500.0,0.00041792,120]
[421961917,1778374252000,-500.0,0.00041792,120]
[421961918,1778374252000,-500.0,0.00041792,120]
[421961919,1778374252000,-500.0,0.00041792,120]
[421961920,1778374252000,-500.0,0.00041792,120]
[421961923,1778374252000,-519.45122084,0.00041792,120]
[421961922,1778374252000,-500.0,0.00041792,120]
[421961921,1778374252000,-500.0,0.00041792,120]
[421961924,1778374252000,-500.0,0.00041792,120]
[421961873,1778374252000,-2514.55,0.00041792,120]
[421961925,1778374252000,-500.0,0.00041792,120]
[421961912,1778374252000,-500.0,0.00041792,120]
[421961901,1778374252000,-763.17,0.00041792,14]
[421961926,1778374252000,-500.0,0.00041792,120]
[421961900,1778374252000,-763.17,0.00041792,14]
[421961899,1778374252000,-763.17,0.00041792,14]
[421961876,1778374252000,-2514.55,0.00041792,120]
[421961875,1778374252000,-2514.55,0.00041792,120]
[421961877,1778374252000,-2514.55,0.00041792,120]
[421961874,1778374252000,-2514.55,0.00041792,120]
[421961878,1778374252000,-2514.77973804,0.00041792,120]
[421961881,1778374252000,-763.17,0.00041792,14]
[421961882,1778374252000,-763.17,0.00041792,14]
[421961884,1778374252000,-763.17,0.00041792,14]
[421961889,1778374252000,-763.17,0.00041792,14]
[421961886,1778374252000,-763.17,0.00041792,14]
[421961885,1778374252000,-763.17,0.00041792,14]
[421961872,1778374252000,-2264.41525939,0.00041792,120]
[421961891,1778374252000,-763.17,0.00041792,14]
[421961887,1778374252000,-763.17,0.00041792,14]
[421961892,1778374252000,-763.17,0.00041792,14]
[421961895,1778374252000,-763.17,0.00041792,14]
[421961898,1778374252000,-763.17,0.00041792,14]
[421961897,1778374252000,-763.17,0.00041792,14]
[421961896,1778374252000,-763.17,0.00041792,14]
[421961893,1778374252000,-763.17,0.00041792,14]
[421961888,1778374252000,-763.17,0.00041792,14]
[421961890,1778374252000,-763.17,0.00041792,14]
[421961883,1778374252000,-763.17,0.00041792,14]
[421961894,1778374252000,-763.17,0.00041792,14]
[421961955,1778374253000,-1948.41,0.00041792,60]
[421961954,1778374253000,-1948.41,0.00041792,60]
[421961949,1778374253000,-1948.41,0.00041792,60]
[421961957,1778374253000,-1948.41,0.00041792,60]
[421961959,1778374253000,-1948.41,0.00041792,60]
[421961958,1778374253000,-1948.41,0.00041792,60]
[421961961,1778374253000,-1948.41,0.00041792,60]
[421961963,1778374253000,-1948.41,0.00041792,60]
[421961962,1778374253000,-1948.41,0.00041792,60]
[421961966,1778374253000,-1948.41,0.00041792,60]
[421961964,1778374253000,-1948.41,0.00041792,60]
[421961967,1778374253000,-1948.41,0.00041792,60]
[421961965,1778374253000,-1948.41,0.00041792,60]
[421961953,1778374253000,-1948.41,0.00041792,60]
[421961968,1778374253000,-1948.49,0.00041792,60]
[421961970,1778374253000,-500.0,0.00041792,120]
[421961969,1778374253000,-100000.0,0.00041792,30]
[421961977,1778374253000,-517.47,0.00041792,120]
[421961975,1778374253000,-517.47,0.00041792,120]
[421961974,1778374253000,-615.71317176,0.00041792,120]
[421961972,1778374253000,-500.0,0.00041792,120]
[421961960,1778374253000,-1948.41,0.00041792,60]
[421961952,1778374253000,-1948.41,0.00041792,60]
[421961945,1778374253000,-1948.41,0.00041792,60]
[421961951,1778374253000,-1948.41,0.00041792,60]
[421961971,1778374253000,-517.47,0.00041792,120]
[421961931,1778374253000,-500.0,0.00041792,120]
[421961929,1778374253000,-409.76685801,0.00041792,2]
[421961927,1778374253000,-500.0,0.00041792,120]
[421961933,1778374253000,-500.0,0.00041792,120]
[421961930,1778374253000,-500.0,0.00041792,120]
[421961932,1778374253000,-500.0,0.00041792,120]
[421961928,1778374253000,-500.0,0.00041792,120]
[421961935,1778374253000,-500.0,0.00041792,120]
[421961937,1778374253000,-500.0,0.00041792,120]
[421961956,1778374253000,-1948.41,0.00041792,60]
[421961936,1778374253000,-500.0,0.00041792,120]
[421961934,1778374253000,-500.0,0.00041792,120]
[421961941,1778374253000,-500.0,0.00041792,120]
[421961940,1778374253000,-500.0,0.00041792,120]
[421961939,1778374253000,-500.0,0.00041792,120]
[421961943,1778374253000,-500.0,0.00041792,120]
[421961944,1778374253000,-494.00119257,0.00041792,120]
[421961946,1778374253000,-1948.41,0.00041792,60]
[421961948,1778374253000,-1948.41,0.00041792,60]
[421961950,1778374253000,-1948.41,0.00041792,60]
[421961947,1778374253000,-1948.41,0.00041792,60]
[421961942,1778374253000,-500.0,0.00041792,120]
[421961938,1778374253000,-500.0,0.00041792,120]
[421961976,1778374253000,-517.47,0.00041792,120]
[421961978,1778374253000,-517.47,0.00041792,120]
[421962009,1778374253000,-517.47,0.00041792,120]
[421962008,1778374253000,-500.0,0.00041792,14]
[421962012,1778374253000,-199.94975889,0.00041792,14]
[421962006,1778374253000,-500.0,0.00041792,14]
[421962005,1778374253000,-517.47,0.00041792,120]
[421962010,1778374253000,-500.0,0.00041792,14]
[421962011,1778374253000,-517.47,0.00041792,120]
[421962007,1778374253000,-517.47,0.00041792,120]
[421962014,1778374253000,-517.47,0.00041792,120]
[421962016,1778374253000,-517.47,0.00041792,120]
[421962004,1778374253000,-500.0,0.00041792,14]
[421962025,1778374253000,-500.0,0.00041792,120]
[421962015,1778374253000,-517.47,0.00041792,120]
[421962018,1778374253000,-500.0,0.00041792,120]
[421962017,1778374253000,-517.60993592,0.00041792,120]
[421962020,1778374253000,-500.0,0.00041792,120]
[421962019,1778374253000,-427.8857454,0.00041792,14]
[421962023,1778374253000,-500.0,0.00041792,120]
[421962024,1778374253000,-500.0,0.00041792,120]
[421962027,1778374253000,-303.62570282,0.00041792,120]
[421962026,1778374253000,-500.0,0.00041792,120]
[421961979,1778374253000,-500.0,0.00041792,14]
[421962022,1778374253000,-500.0,0.00041792,120]
[421962002,1778374253000,-517.47,0.00041792,120]
[421962021,1778374253000,-253.81949859,0.00041792,120]
[421962003,1778374253000,-500.0,0.00041792,14]
[421961973,1778374253000,-517.47,0.00041792,120]
[421962013,1778374253000,-517.47,0.00041792,120]
[421961981,1778374253000,-500.0,0.00041792,14]
[421961984,1778374253000,-500.0,0.00041792,120]
[421961982,1778374253000,-500.0,0.00041792,14]
[421961983,1778374253000,-500.0,0.00041792,14]
[421961980,1778374253000,-517.47,0.00041792,120]
[421961986,1778374253000,-500.0,0.00041792,14]
[421961987,1778374253000,-517.47,0.00041792,120]
[421961988,1778374253000,-500.0,0.00041792,120]
[421961990,1778374253000,-517.47,0.00041792,120]
[421961989,1778374253000,-500.0,0.00041792,14]
[421961985,1778374253000,-517.47,0.00041792,120]
[421961991,1778374253000,-500.0,0.00041792,120]
[421962001,1778374253000,-500.0,0.00041792,14]
[421962000,1778374253000,-517.47,0.00041792,120]
[421961994,1778374253000,-500.0,0.00041792,120]
[421961999,1778374253000,-517.47,0.00041792,120]
[421961997,1778374253000,-513.61702307,0.00041792,120]
[421961998,1778374253000,-500.0,0.00041792,14]
[421961996,1778374253000,-517.47,0.00041792,120]
[421961993,1778374253000,-517.47,0.00041792,120]
[421961992,1778374253000,-500.0,0.00041792,14]
[421961995,1778374253000,-500.0,0.00041792,14]
[421962069,1778374254000,-2670.9,0.00041792,120]